[Event "*** Titled Tuesday Blitz"]
[Site "Chess.com"]
[Date "2018.11.06"]
[Round "1"]
[White "albi1999"]
[Black "Alexander_Moskalenko"]
[Result "0-1"]
[WhiteElo "2442"]
[BlackElo "2872"]
[TimeControl "180+2"]
[EndTime "13:09:22 PST"]
[Termination "Alexander_Moskalenko won by resignation"]

1. d4 {[%clk 0:02:56.7]} 1... Nf6 {[%clk 0:02:54.9]} 2. c4 {[%clk 0:02:57.2]}
2... g6 {[%clk 0:02:56.8]} 3. g3 {[%clk 0:02:58.2]} 3... Bg7 {[%clk 0:02:53.4]}
4. Bg2 {[%clk 0:02:58.9]} 4... c6 {[%clk 0:02:55.3]} 5. Nc3 {[%clk 0:02:56]}
5... d6 {[%clk 0:02:53.4]} 6. Nf3 {[%clk 0:02:53.7]} 6... O-O {[%clk 0:02:55.3]}
7. O-O {[%clk 0:02:53.4]} 7... Qa5 {[%clk 0:02:54]} 8. e4 {[%clk 0:02:53.1]}
8... Bg4 {[%clk 0:02:51.8]} 9. h3 {[%clk 0:02:53.4]} 9... Bxf3 {[%clk
0:02:50.5]} 10. Bxf3 {[%clk 0:02:55.3]} 10... Nfd7 {[%clk 0:02:47.8]} 11. Be3
{[%clk 0:02:54.8]} 11... Qb4 {[%clk 0:02:47.8]} 12. Qb3 {[%clk 0:02:47.4]} 12...
Qxb3 {[%clk 0:02:47.6]} 13. axb3 {[%clk 0:02:49.3]} 13... Na6 {[%clk 0:02:46.5]}
14. Rfd1 {[%clk 0:02:35.2]} 14... Nb4 {[%clk 0:02:45.3]} 15. Rd2 {[%clk
0:02:33.5]} 15... Rfd8 {[%clk 0:02:45.6]} 16. Be2 {[%clk 0:02:33.7]} 16... c5
{[%clk 0:02:44.5]} 17. d5 {[%clk 0:02:32.8]} 17... a6 {[%clk 0:02:42.4]} 18. f4
{[%clk 0:02:31.2]} 18... Nf8 {[%clk 0:02:39.7]} 19. Kf2 {[%clk 0:02:31]} 19...
e6 {[%clk 0:02:39]} 20. Rad1 {[%clk 0:02:24.7]} 20... exd5 {[%clk 0:02:40.2]}
21. Nxd5 {[%clk 0:02:22]} 21... Nxd5 {[%clk 0:02:40.5]} 22. Rxd5 {[%clk
0:02:19.6]} 22... Bxb2 {[%clk 0:02:41.4]} 23. Rxd6 {[%clk 0:02:20.3]} 23... Bd4
{[%clk 0:02:42.7]} 24. Rxd8 {[%clk 0:02:17.7]} 24... Rxd8 {[%clk 0:02:43.2]} 25.
Bxd4 {[%clk 0:02:15.3]} 25... cxd4 {[%clk 0:02:45.1]} 26. c5 {[%clk 0:02:07.4]}
26... a5 {[%clk 0:02:45]} 27. Bc4 {[%clk 0:02:06]} 27... Kg7 {[%clk 0:02:33.5]}
28. Ke2 {[%clk 0:02:06.3]} 28... f6 {[%clk 0:02:31.4]} 29. Ra1 {[%clk
0:02:04.6]} 29... Ra8 {[%clk 0:02:25.4]} 30. Kd3 {[%clk 0:02:04.1]} 30... Nd7
{[%clk 0:02:26]} 31. Kxd4 {[%clk 0:02:04.5]} 31... Rd8 {[%clk 0:02:27.7]} 32.
Bd5 {[%clk 0:02:04.1]} 32... b6 {[%clk 0:02:27.5]} 33. c6 {[%clk 0:02:01.1]}
33... Nc5 {[%clk 0:02:28.9]} 34. Kc4 {[%clk 0:01:55.3]} 34... Kf8 {[%clk
0:02:10.2]} 35. Kb5 {[%clk 0:01:53.7]} 35... Ke7 {[%clk 0:02:12.1]} 36. Kxb6
{[%clk 0:01:52.2]} 36... Kd6 {[%clk 0:02:13.6]} 37. c7 {[%clk 0:01:50.3]} 37...
Nd7+ {[%clk 0:02:13.1]} 38. Kb7 {[%clk 0:01:41.3]} 38... Nc5+ {[%clk 0:02:14.1]}
39. Ka7 {[%clk 0:01:32.2]} 39... Kxc7 {[%clk 0:02:14.6]} 40. Rxa5 {[%clk
0:01:31.1]} 40... Kd6 {[%clk 0:02:15.4]} 41. b4 {[%clk 0:01:24.9]} 41... Rd7+
{[%clk 0:02:09.2]} 42. Kb6 {[%clk 0:01:23.1]} 42... Nd3 {[%clk 0:02:10.4]} 43.
Kb5 {[%clk 0:01:20]} 43... Ke7 {[%clk 0:01:59.5]} 44. Kc4 {[%clk 0:01:16.2]}
44... Nb2+ {[%clk 0:01:57.2]} 45. Kc3 {[%clk 0:01:16.7]} 45... Nd1+ {[%clk
0:01:57.9]} 46. Kd4 {[%clk 0:01:16.2]} 46... f5 {[%clk 0:01:54.7]} 47. e5 {[%clk
0:01:15.9]} 47... Nf2 {[%clk 0:01:53.9]} 48. h4 {[%clk 0:01:06.6]} 48... Ne4
{[%clk 0:01:54.8]} 49. b5 {[%clk 0:01:04.2]} 49... Nxg3 {[%clk 0:01:54.4]} 50.
b6 {[%clk 0:01:03.7]} 50... Ne2+ {[%clk 0:01:55.1]} 51. Ke3 {[%clk 0:01:02.8]}
51... Nc3 {[%clk 0:01:54.8]} 52. b7 {[%clk 0:01:01.4]} 52... Nxd5+ {[%clk
0:01:55.3]} 53. Rxd5 {[%clk 0:00:54.5]} 53... Rxb7 {[%clk 0:01:56.3]} 54. Rc5
{[%clk 0:00:52.8]} 54... Ra7 {[%clk 0:01:51.4]} 55. Kd4 {[%clk 0:00:51]} 55...
Rd7+ {[%clk 0:01:52.2]} 56. Kc4 {[%clk 0:00:49.8]} 56... Rd1 {[%clk 0:01:50.6]}
57. Rc7+ {[%clk 0:00:50.4]} 57... Ke6 {[%clk 0:01:52]} 58. Rxh7 {[%clk 0:00:51]}
58... Rf1 {[%clk 0:01:53.1]} 59. h5 {[%clk 0:00:48.5]} 59... Rxf4+ {[%clk
0:01:52.7]} 60. Kd3 {[%clk 0:00:49.8]} 60... g5 {[%clk 0:01:53.9]} 61. Rg7
{[%clk 0:00:50]} 61... g4 {[%clk 0:01:53.7]} 62. h6 {[%clk 0:00:51.4]} 62...
Kxe5 {[%clk 0:01:53.7]} 63. h7 {[%clk 0:00:50.7]} 63... Rf3+ {[%clk 0:01:55.1]}
64. Ke2 {[%clk 0:00:52]} 64... Rh3 {[%clk 0:01:57]} 65. Ra7 {[%clk 0:00:52.6]}
65... Kf4 {[%clk 0:01:57.6]} 66. Kf2 {[%clk 0:00:53.2]} 66... Kg5 {[%clk
0:01:57.8]} 67. Kg2 {[%clk 0:00:53.6]} 67... Kg6 {[%clk 0:01:58.3]} 68. Ra6+
{[%clk 0:00:53.2]} 68... Kxh7 {[%clk 0:01:59.2]} 69. Rf6 {[%clk 0:00:54.7]}
69... Rh5 {[%clk 0:02:00.1]} 70. Kg3 {[%clk 0:00:55.3]} 70... Kg7 {[%clk
0:02:00.9]} 71. Rc6 {[%clk 0:00:55.9]} 71... Rh6 {[%clk 0:02:01.7]} 72. Rc8
{[%clk 0:00:50.8]} 72... Rh3+ {[%clk 0:02:01.7]} 73. Kf4 {[%clk 0:00:52]} 73...
Rf3+ {[%clk 0:02:03.6]} 74. Kg5 {[%clk 0:00:53.4]} 74... g3 {[%clk 0:02:05]} 75.
Rc7+ {[%clk 0:00:54.4]} 75... Kf8 {[%clk 0:02:06.4]} 76. Kf6 {[%clk 0:00:51.9]}
76... Ke8 {[%clk 0:02:07.6]} 77. Rg7 {[%clk 0:00:51.1]} 77... f4 {[%clk
0:02:07.8]} 78. Kf5 {[%clk 0:00:48.5]} 78... Rf2 {[%clk 0:02:08.1]} 79. Ke4
{[%clk 0:00:49.1]} 79... g2 {[%clk 0:02:08.9]} 80. Kd3 {[%clk 0:00:48.8]} 80...
f3 {[%clk 0:02:10]} 81. Ke3 {[%clk 0:00:50.1]} 81... Rf1 {[%clk 0:02:10.9]} 0-1

[Event "*** Titled Tuesday Blitz"]
[Site "Chess.com"]
[Date "2018.11.06"]
[Round "1"]
[White "KenanGarayev"]
[Black "Pilopa"]
[Result "1-0"]
[WhiteElo "2736"]
[BlackElo "2370"]
[TimeControl "180+2"]
[EndTime "13:09:23 PST"]
[Termination "KenanGarayev won by resignation"]

1. d4 {[%clk 0:03:01.9]} 1... Nf6 {[%clk 0:02:59.4]} 2. c4 {[%clk 0:03:02.6]}
2... g6 {[%clk 0:02:59.1]} 3. Nc3 {[%clk 0:03:03.3]} 3... d5 {[%clk 0:02:36.7]}
4. cxd5 {[%clk 0:03:01.3]} 4... Nxd5 {[%clk 0:02:37.5]} 5. e4 {[%clk 0:03:01.4]}
5... Nxc3 {[%clk 0:02:38.6]} 6. bxc3 {[%clk 0:03:03.3]} 6... Bg7 {[%clk
0:02:39.6]} 7. Bc4 {[%clk 0:03:02.3]} 7... c5 {[%clk 0:02:38.8]} 8. Ne2 {[%clk
0:03:01.9]} 8... Nc6 {[%clk 0:02:39.7]} 9. Be3 {[%clk 0:03:01.1]} 9... O-O
{[%clk 0:02:40.4]} 10. Rc1 {[%clk 0:02:58]} 10... cxd4 {[%clk 0:02:41]} 11. cxd4
{[%clk 0:02:58.7]} 11... Qa5+ {[%clk 0:02:42.3]} 12. Kf1 {[%clk 0:02:58.4]}
12... Qa3 {[%clk 0:02:43.1]} 13. Rc3 {[%clk 0:02:54.3]} 13... Qa5 {[%clk
0:02:43.6]} 14. h4 {[%clk 0:02:53.8]} 14... Rd8 {[%clk 0:02:38.9]} 15. h5 {[%clk
0:02:48.4]} 15... Nxd4 {[%clk 0:02:32.6]} 16. Bxd4 {[%clk 0:02:31.6]} 16... Rxd4
{[%clk 0:02:22.2]} 17. Bxf7+ {[%clk 0:02:24.8]} 17... Kf8 {[%clk 0:01:16.7]} 18.
Qc2 {[%clk 0:02:14.3]} 18... Bg4 {[%clk 0:01:00.4]} 19. Nxd4 {[%clk 0:02:04.7]}
19... Bxd4 {[%clk 0:01:00.7]} 20. Rc7 {[%clk 0:02:03.2]} 20... Kxf7 {[%clk
0:00:33.8]} 21. Qc4+ {[%clk 0:02:03.2]} 21... Be6 {[%clk 0:00:25.8]} 22. hxg6+
{[%clk 0:01:59.9]} 22... hxg6 {[%clk 0:00:24.8]} 23. Rh7+ {[%clk 0:02:00.4]}
23... Bg7 {[%clk 0:00:25.7]} 24. Rxg7+ {[%clk 0:01:56.5]} 24... Kxg7 {[%clk
0:00:22.4]} 25. Rxe7+ {[%clk 0:01:57]} 25... Kh6 {[%clk 0:00:19.6]} 26. Qxe6
{[%clk 0:01:54.4]} 26... Qh5 {[%clk 0:00:04.9]} 27. Kg1 {[%clk 0:01:30]} 27...
Rd8 {[%clk 0:00:05.4]} 28. Qh3 {[%clk 0:01:24.1]} 28... Qxh3 {[%clk 0:00:06.3]}
29. gxh3 {[%clk 0:01:25.1]} 29... Rd1+ {[%clk 0:00:08.2]} 30. Kg2 {[%clk
0:01:25.6]} 30... Rd2 {[%clk 0:00:10.1]} 31. Rxb7 {[%clk 0:01:25.9]} 31... Rxa2
{[%clk 0:00:11]} 32. Kg3 {[%clk 0:01:26]} 32... Re2 {[%clk 0:00:11.7]} 33. f3
{[%clk 0:01:26.6]} 33... Ra2 {[%clk 0:00:12.8]} 34. Kg4 {[%clk 0:01:26.2]} 34...
Ra5 {[%clk 0:00:11.8]} 35. Kf4 {[%clk 0:01:26.2]} 35... Ra6 {[%clk 0:00:08.4]}
36. h4 {[%clk 0:01:26.3]} 36... Ra5 {[%clk 0:00:09.5]} 37. e5 {[%clk 0:01:27.1]}
37... Ra4+ {[%clk 0:00:06.3]} 38. Ke3 {[%clk 0:01:27]} 38... Ra6 {[%clk
0:00:07.4]} 39. Ke4 {[%clk 0:01:24.8]} 39... Ra4+ {[%clk 0:00:05.9]} 40. Kd5
{[%clk 0:01:20.4]} 40... Rxh4 {[%clk 0:00:06.1]} 41. e6 {[%clk 0:01:20.9]} 41...
Rh1 {[%clk 0:00:07]} 42. e7 {[%clk 0:01:18.3]} 42... Re1 {[%clk 0:00:04.1]} 43.
Kd6 {[%clk 0:01:11.5]} 43... Kg5 {[%clk 0:00:04.3]} 44. Rb8 {[%clk 0:01:08.7]}
44... Rd1+ {[%clk 0:00:02.1]} 45. Ke6 {[%clk 0:01:09.1]} 45... Re1+ {[%clk
0:00:02.1]} 46. Kf7 {[%clk 0:01:10.2]} 46... Kf4 {[%clk 0:00:02.2]} 47. Kxg6
{[%clk 0:01:09.9]} 47... Rxe7 {[%clk 0:00:02.4]} 48. Rf8+ {[%clk 0:01:10.3]}
48... Ke3 {[%clk 0:00:03.3]} 49. f4 {[%clk 0:01:10.6]} 49... Rb7 {[%clk
0:00:05.2]} 50. f5 {[%clk 0:01:11.6]} 50... a5 {[%clk 0:00:06.5]} 51. Ra8 {[%clk
0:01:11.3]} 51... Rb5 {[%clk 0:00:07.1]} 52. f6 {[%clk 0:01:12.5]} 52... Rb1
{[%clk 0:00:03.8]} 53. Rxa5 {[%clk 0:01:09.1]} 53... Rf1 {[%clk 0:00:05.6]} 54.
f7 {[%clk 0:01:09.9]} 54... Rg1+ {[%clk 0:00:05.9]} 55. Rg5 {[%clk 0:01:09.5]}
1-0

[Event "*** Titled Tuesday Blitz"]
[Site "Chess.com"]
[Date "2018.11.06"]
[Round "1"]
[White "Annawel"]
[Black "vovachesss"]
[Result "1-0"]
[WhiteElo "2904"]
[BlackElo "2452"]
[TimeControl "180+2"]
[EndTime "13:09:24 PST"]
[Termination "Annawel won by resignation"]

1. e4 {[%clk 0:02:56.4]} 1... e5 {[%clk 0:02:48.1]} 2. Nf3 {[%clk 0:02:56.8]}
2... d5 {[%clk 0:02:44.9]} 3. Qe2 {[%clk 0:02:42.4]} 3... Nc6 {[%clk 0:02:12.5]}
4. exd5 {[%clk 0:02:40.3]} 4... Qxd5 {[%clk 0:02:12.7]} 5. Nc3 {[%clk
0:02:41.6]} 5... Qe6 {[%clk 0:01:52.9]} 6. d3 {[%clk 0:02:30.2]} 6... Nf6 {[%clk
0:01:48.2]} 7. g3 {[%clk 0:02:30.1]} 7... Bb4 {[%clk 0:01:46.7]} 8. Bd2 {[%clk
0:02:28.2]} 8... Nd4 {[%clk 0:00:49.8]} 9. Nxd4 {[%clk 0:02:26.6]} 9... exd4
{[%clk 0:00:51.7]} 10. Nb5 {[%clk 0:02:26.5]} 10... Bxd2+ {[%clk 0:00:44.2]} 11.
Kxd2 {[%clk 0:02:28.4]} 11... Qxe2+ {[%clk 0:00:44.1]} 12. Bxe2 {[%clk
0:02:30.3]} 12... Kd8 {[%clk 0:00:16.8]} 13. Nxd4 {[%clk 0:02:31.3]} 13... c6
{[%clk 0:00:17.5]} 14. f4 {[%clk 0:02:28.6]} 14... Bd7 {[%clk 0:00:16.4]} 15.
Bf3 {[%clk 0:02:30]} 15... Kc7 {[%clk 0:00:17.8]} 16. Rhe1 {[%clk 0:02:31.1]}
16... Rae8 {[%clk 0:00:19.2]} 17. b4 {[%clk 0:02:30.3]} 17... Bg4 {[%clk
0:00:19.3]} 18. Bxg4 {[%clk 0:02:27.3]} 18... Nxg4 {[%clk 0:00:21.2]} 19. h3
{[%clk 0:02:29]} 19... Nf6 {[%clk 0:00:22.2]} 20. c4 {[%clk 0:02:30.4]} 20...
Nh5 {[%clk 0:00:22]} 21. Rg1 {[%clk 0:02:31.1]} 21... Rd8 {[%clk 0:00:21.2]} 22.
Nf3 {[%clk 0:02:31.7]} 22... Rhe8 {[%clk 0:00:21.4]} 23. Ng5 {[%clk 0:02:30]}
23... f6 {[%clk 0:00:20.2]} 24. Nf3 {[%clk 0:02:31.4]} 24... g6 {[%clk
0:00:18.5]} 25. Rae1 {[%clk 0:02:32.1]} 25... Rxe1 {[%clk 0:00:19.3]} 26. Nxe1
{[%clk 0:02:34]} 26... b5 {[%clk 0:00:17.9]} 27. c5 {[%clk 0:02:34.8]} 27... a5
{[%clk 0:00:18.9]} 28. a3 {[%clk 0:02:36.4]} 28... axb4 {[%clk 0:00:19.8]} 29.
axb4 {[%clk 0:02:38.3]} 29... Ra8 {[%clk 0:00:21.3]} 30. Nc2 {[%clk 0:02:39.9]}
30... Re8 {[%clk 0:00:18.8]} 31. Ne3 {[%clk 0:02:40.2]} 31... Ra8 {[%clk
0:00:19]} 32. f5 {[%clk 0:02:41.3]} 32... Ra2+ {[%clk 0:00:19.7]} 33. Kc3 {[%clk
0:02:43]} 33... Re2 {[%clk 0:00:18.4]} 34. fxg6 {[%clk 0:02:43.4]} 34... hxg6
{[%clk 0:00:18.7]} 35. Kd4 {[%clk 0:02:44.5]} 35... Ng7 {[%clk 0:00:16.2]} 36.
Ng4 {[%clk 0:02:43.2]} 36... Ne6+ {[%clk 0:00:07.8]} 37. Kc3 {[%clk 0:02:44.4]}
37... f5 {[%clk 0:00:09.1]} 38. Nf6 {[%clk 0:02:45.7]} 38... Re3 {[%clk
0:00:05.9]} 39. Kd2 {[%clk 0:02:41.2]} 39... Re5 {[%clk 0:00:07]} 40. Ra1 {[%clk
0:02:37.6]} 40... Nd4 {[%clk 0:00:07.1]} 41. Ra7+ {[%clk 0:02:38.9]} 41... Kb8
{[%clk 0:00:08.3]} 42. Nd7+ {[%clk 0:02:38.6]} 42... Kxa7 {[%clk 0:00:08.5]} 43.
Nxe5 {[%clk 0:02:40.5]} 43... g5 {[%clk 0:00:09.5]} 44. h4 {[%clk 0:02:39.1]}
44... f4 {[%clk 0:00:10.7]} 45. gxf4 {[%clk 0:02:29.4]} 45... gxh4 {[%clk
0:00:11.9]} 46. Ke3 {[%clk 0:02:15.3]} 46... Nc2+ {[%clk 0:00:13]} 47. Kf3
{[%clk 0:02:11.4]} 47... Nxb4 {[%clk 0:00:14.9]} 48. f5 {[%clk 0:02:12]} 48...
Nd5 {[%clk 0:00:13.6]} 49. Nxc6+ {[%clk 0:02:12.9]} 49... Kb7 {[%clk 0:00:14.9]}
50. Nd4 {[%clk 0:02:10.8]} 50... b4 {[%clk 0:00:15.8]} 51. Kg4 {[%clk
0:02:12.3]} 51... Ne3+ {[%clk 0:00:14.3]} 52. Kf3 {[%clk 0:00:55.7]} 52... Nxf5
{[%clk 0:00:12.6]} 53. Nxf5 {[%clk 0:00:54.7]} 53... b3 {[%clk 0:00:13.7]} 54.
Nd6+ {[%clk 0:00:55.8]} 54... Kc6 {[%clk 0:00:14.5]} 55. Ne4 {[%clk 0:00:55.1]}
55... b2 {[%clk 0:00:14.6]} 56. Nc3 {[%clk 0:00:56.4]} 56... Kxc5 {[%clk
0:00:16.5]} 57. Na4+ {[%clk 0:00:57.7]} 57... Kd4 {[%clk 0:00:02.1]} 58. Nxb2
{[%clk 0:00:59.6]} 58... Kc3 {[%clk 0:00:03.1]} 59. Kg4 {[%clk 0:01:00.5]} 59...
Kxb2 {[%clk 0:00:03.9]} 60. d4 {[%clk 0:01:02]} 60... h3 {[%clk 0:00:05.8]} 61.
Kxh3 {[%clk 0:01:03]} 1-0

[Event "*** Titled Tuesday Blitz"]
[Site "Chess.com"]
[Date "2018.11.06"]
[Round "1"]
[White "Barcelona_Guy"]
[Black "SimonKnightRivendell"]
[Result "1/2-1/2"]
[WhiteElo "2473"]
[BlackElo "1958"]
[TimeControl "180+2"]
[EndTime "13:09:35 PST"]
[Termination "Game drawn by repetition"]

1. d4 {[%clk 0:03:01.3]} 1... d5 {[%clk 0:02:57.7]} 2. c4 {[%clk 0:02:58.3]}
2... e5 {[%clk 0:02:57.8]} 3. dxe5 {[%clk 0:02:57.5]} 3... d4 {[%clk 0:02:58.8]}
4. Nf3 {[%clk 0:02:57.2]} 4... Nc6 {[%clk 0:03:00.2]} 5. a3 {[%clk 0:02:58.7]}
5... Bg4 {[%clk 0:02:59.4]} 6. Nbd2 {[%clk 0:02:58.4]} 6... Nge7 {[%clk
0:02:59.4]} 7. b4 {[%clk 0:02:51.3]} 7... Ng6 {[%clk 0:02:59]} 8. h3 {[%clk
0:02:47.1]} 8... Be6 {[%clk 0:02:53.4]} 9. Bb2 {[%clk 0:02:38.3]} 9... Ngxe5
{[%clk 0:02:52.4]} 10. Nxe5 {[%clk 0:02:34]} 10... Nxe5 {[%clk 0:02:53.1]} 11.
e3 {[%clk 0:02:33.7]} 11... dxe3 {[%clk 0:02:48.7]} 12. Bxe5 {[%clk 0:02:34.6]}
12... exd2+ {[%clk 0:02:47]} 13. Qxd2 {[%clk 0:02:35.8]} 13... Qxd2+ {[%clk
0:02:47.2]} 14. Kxd2 {[%clk 0:02:37.7]} 14... O-O-O+ {[%clk 0:02:47.6]} 15. Kc3
{[%clk 0:02:37.9]} 15... f6 {[%clk 0:02:38.1]} 16. Bd4 {[%clk 0:02:36.1]} 16...
Bd6 {[%clk 0:02:36.7]} 17. Be2 {[%clk 0:02:32.2]} 17... Rhe8 {[%clk 0:02:33.1]}
18. Bf3 {[%clk 0:02:32.3]} 18... Kb8 {[%clk 0:02:28.3]} 19. Rhe1 {[%clk
0:02:32.7]} 19... Bf5 {[%clk 0:02:20]} 20. c5 {[%clk 0:02:26.9]} 20... Be5
{[%clk 0:02:15.2]} 21. Bxe5 {[%clk 0:02:27.2]} 21... Rd3+ {[%clk 0:02:12.5]} 22.
Kc4 {[%clk 0:02:26.1]} 22... fxe5 {[%clk 0:02:12.3]} 23. Rad1 {[%clk 0:02:25.3]}
23... Rxa3 {[%clk 0:02:07.3]} 24. Bg4 {[%clk 0:02:16.5]} 24... Bc2 {[%clk
0:01:53.3]} 25. Ra1 {[%clk 0:01:24.6]} 25... Bd3+ {[%clk 0:01:27]} 26. Kd5
{[%clk 0:01:25.4]} 26... Rb3 {[%clk 0:01:12.1]} 27. Be6 {[%clk 0:00:56]} 27...
Rxb4 {[%clk 0:01:05.9]} 28. Kxe5 {[%clk 0:00:49.1]} 28... Bc4 {[%clk 0:01:04.9]}
29. Kf5 {[%clk 0:00:50.4]} 29... g6+ {[%clk 0:01:00.3]} 30. Kf6 {[%clk
0:00:51.3]} 30... Bxe6 {[%clk 0:01:00.8]} 31. Rxe6 {[%clk 0:00:53.2]} 31... Rf4+
{[%clk 0:01:00.3]} 32. Ke5 {[%clk 0:00:44]} 32... Rxe6+ {[%clk 0:01:00.1]} 33.
Kxe6 {[%clk 0:00:45.1]} 33... Rxf2 {[%clk 0:01:00.3]} 34. Rd1 {[%clk 0:00:44.7]}
34... a6 {[%clk 0:01:00.8]} 35. g4 {[%clk 0:00:43.4]} 35... Rf3 {[%clk
0:00:57.7]} 36. h4 {[%clk 0:00:38.9]} 36... Rf4 {[%clk 0:00:57.7]} 37. Rd7
{[%clk 0:00:40.2]} 37... h5 {[%clk 0:00:57.3]} 38. g5 {[%clk 0:00:40.9]} 38...
Rxh4 {[%clk 0:00:57.3]} 39. Kf6 {[%clk 0:00:42.4]} 39... Rc4 {[%clk 0:00:56.3]}
40. Rd5 {[%clk 0:00:36.7]} 40... a5 {[%clk 0:00:51.2]} 41. Kxg6 {[%clk 0:00:38]}
41... a4 {[%clk 0:00:52.2]} 42. Kf7 {[%clk 0:00:37.1]} 42... a3 {[%clk
0:00:52.6]} 43. g6 {[%clk 0:00:37.3]} 43... a2 {[%clk 0:00:51.7]} 44. Rd1 {[%clk
0:00:36.6]} 44... Rf4+ {[%clk 0:00:52.4]} 45. Kg8 {[%clk 0:00:37.1]} 45... Rg4
{[%clk 0:00:51.8]} 46. g7 {[%clk 0:00:38.2]} 46... h4 {[%clk 0:00:52.5]} 47. Kh7
{[%clk 0:00:38.6]} 47... h3 {[%clk 0:00:49.9]} 48. g8=Q+ {[%clk 0:00:35.6]}
48... Rxg8 {[%clk 0:00:50.6]} 49. Kxg8 {[%clk 0:00:37.5]} 49... b5 {[%clk
0:00:46.4]} 50. cxb6 {[%clk 0:00:27.6]} 50... cxb6 {[%clk 0:00:46.7]} 51. Kf7
{[%clk 0:00:26.2]} 51... b5 {[%clk 0:00:47.2]} 52. Ke6 {[%clk 0:00:27.8]} 52...
b4 {[%clk 0:00:47.2]} 53. Kd5 {[%clk 0:00:23]} 53... b3 {[%clk 0:00:46.2]} 54.
Kc6 {[%clk 0:00:24.1]} 54... b2 {[%clk 0:00:45.5]} 55. Rd8+ {[%clk 0:00:25.3]}
55... Ka7 {[%clk 0:00:45.7]} 56. Rd7+ {[%clk 0:00:26.9]} 56... Ka6 {[%clk
0:00:46.6]} 57. Rd8 {[%clk 0:00:21.4]} 57... Ka5 {[%clk 0:00:47.1]} 58. Kc5
{[%clk 0:00:22.6]} 58... Ka6 {[%clk 0:00:46.7]} 59. Kc6 {[%clk 0:00:23.7]} 59...
Ka7 {[%clk 0:00:47.7]} 60. Rd7+ {[%clk 0:00:24.4]} 60... Ka6 {[%clk 0:00:47.1]}
61. Rd8 {[%clk 0:00:19.7]} 1/2-1/2

[Event "*** Titled Tuesday Blitz"]
[Site "Chess.com"]
[Date "2018.11.06"]
[Round "1"]
[White "FranciscodelaF"]
[Black "SaraciNderim"]
[Result "1-0"]
[WhiteElo "2327"]
[BlackElo "2657"]
[TimeControl "180+2"]
[EndTime "13:09:37 PST"]
[Termination "FranciscodelaF won by resignation"]

1. d4 {[%clk 0:03:01.7]} 1... Nf6 {[%clk 0:02:55.6]} 2. c4 {[%clk 0:03:02.5]}
2... g6 {[%clk 0:02:46.7]} 3. Nf3 {[%clk 0:03:01.6]} 3... Bg7 {[%clk 0:02:31.3]}
4. g3 {[%clk 0:03:02.6]} 4... O-O {[%clk 0:02:30.8]} 5. Bg2 {[%clk 0:03:04]}
5... d6 {[%clk 0:02:32.2]} 6. O-O {[%clk 0:03:04.8]} 6... c6 {[%clk 0:02:34.1]}
7. Nc3 {[%clk 0:03:05.9]} 7... Nbd7 {[%clk 0:02:32.7]} 8. e4 {[%clk 0:03:06.7]}
8... e5 {[%clk 0:02:33.5]} 9. h3 {[%clk 0:03:07.4]} 9... Re8 {[%clk 0:02:34.2]}
10. Re1 {[%clk 0:03:08.9]} 10... a5 {[%clk 0:02:33.1]} 11. Be3 {[%clk
0:03:09.8]} 11... exd4 {[%clk 0:02:32.9]} 12. Nxd4 {[%clk 0:03:10.2]} 12... Nc5
{[%clk 0:02:33.3]} 13. Qc2 {[%clk 0:03:11.3]} 13... Qc7 {[%clk 0:02:32.5]} 14.
Rad1 {[%clk 0:03:11.8]} 14... h5 {[%clk 0:02:33.3]} 15. Ndb5 {[%clk 0:03:11.5]}
15... cxb5 {[%clk 0:02:27.9]} 16. Nxb5 {[%clk 0:03:13.4]} 16... Qb8 {[%clk
0:02:23.2]} 17. Nxd6 {[%clk 0:03:13.2]} 17... Ncd7 {[%clk 0:01:57.4]} 18. Nxe8
{[%clk 0:02:54.2]} 18... Nxe8 {[%clk 0:01:59.3]} 19. f4 {[%clk 0:02:55.3]} 19...
Qc7 {[%clk 0:01:56.3]} 20. e5 {[%clk 0:02:56.5]} 20... Nf8 {[%clk 0:01:53.6]}
21. b3 {[%clk 0:02:53.5]} 21... Bf5 {[%clk 0:01:54.1]} 22. Qf2 {[%clk 0:02:54]}
22... Ne6 {[%clk 0:01:53.1]} 23. Kh2 {[%clk 0:02:53]} 23... a4 {[%clk
0:01:52.6]} 24. Bb6 {[%clk 0:02:54]} 24... Qc8 {[%clk 0:01:53]} 25. c5 {[%clk
0:02:48.9]} 25... axb3 {[%clk 0:01:52.7]} 26. axb3 {[%clk 0:02:50.2]} 26... N8c7
{[%clk 0:01:51.6]} 27. b4 {[%clk 0:02:48.7]} 27... Nb5 {[%clk 0:01:49]} 28. Rd2
{[%clk 0:02:32.6]} 28... Ra4 {[%clk 0:01:31.8]} 29. Qf3 {[%clk 0:02:30.6]} 29...
Rxb4 {[%clk 0:01:21.9]} 30. Qxb7 {[%clk 0:02:31.3]} 30... Qxb7 {[%clk
0:01:23.8]} 31. Bxb7 {[%clk 0:02:32.6]} 31... Nbd4 {[%clk 0:01:21]} 32. Re3
{[%clk 0:02:28.1]} 32... Nc2 {[%clk 0:01:13.6]} 33. Rc3 {[%clk 0:02:23.7]} 33...
Ncd4 {[%clk 0:01:04.8]} 34. Bd5 {[%clk 0:02:24.3]} 34... h4 {[%clk 0:01:00.7]}
35. Bxe6 {[%clk 0:01:54.8]} 35... Bxe6 {[%clk 0:00:49.2]} 36. c6 {[%clk
0:01:50.4]} 36... Rxb6 {[%clk 0:00:44]} 37. Rxd4 {[%clk 0:01:50.8]} 37... Rb2+
{[%clk 0:00:24.5]} 38. Kh1 {[%clk 0:01:49.6]} 38... Rb1+ {[%clk 0:00:23.5]} 39.
Kg2 {[%clk 0:01:49.8]} 39... Rb2+ {[%clk 0:00:24]} 40. Kf3 {[%clk 0:01:51.2]}
40... hxg3 {[%clk 0:00:21.2]} 41. Kxg3 {[%clk 0:01:51.6]} 41... g5 {[%clk
0:00:18.9]} 42. c7 {[%clk 0:01:51.3]} 42... gxf4+ {[%clk 0:00:20.1]} 43. Kxf4
{[%clk 0:01:52.1]} 43... Bh6+ {[%clk 0:00:21.1]} 44. Ke4 {[%clk 0:01:53]} 44...
Re2+ {[%clk 0:00:20.6]} 45. Kd3 {[%clk 0:01:51.8]} 45... Rd2+ {[%clk 0:00:21.7]}
46. Ke4 {[%clk 0:01:50.9]} 46... Re2+ {[%clk 0:00:23.2]} 47. Kf3 {[%clk
0:01:51.3]} 47... Rxe5 {[%clk 0:00:24.3]} 48. c8=Q+ {[%clk 0:01:51.6]} 48...
Bxc8 {[%clk 0:00:25.8]} 49. Rxc8+ {[%clk 0:01:53.5]} 49... Kg7 {[%clk
0:00:27.7]} 50. Rg4+ {[%clk 0:01:53.2]} 50... Kh7 {[%clk 0:00:29]} 51. Rc6
{[%clk 0:01:51.5]} 51... Rf5+ {[%clk 0:00:29.8]} 52. Kg2 {[%clk 0:01:48.9]}
52... Rh5 {[%clk 0:00:30.7]} 53. Rf6 {[%clk 0:01:44.8]} 53... Bg5 {[%clk
0:00:10.7]} 54. Rxf7+ {[%clk 0:01:36.6]} 54... Kg6 {[%clk 0:00:12.6]} 55. Ra7
{[%clk 0:01:35.3]} 55... Kh6 {[%clk 0:00:11.5]} 56. Ra6+ {[%clk 0:01:35.9]}
56... Kh7 {[%clk 0:00:12.4]} 57. Ra5 {[%clk 0:01:36.1]} 57... Kh6 {[%clk
0:00:13.4]} 58. Rc4 {[%clk 0:01:33.5]} 58... Bf6 {[%clk 0:00:13.3]} 59. Ra6
{[%clk 0:01:32.2]} 59... Rg5+ {[%clk 0:00:13.4]} 60. Kf3 {[%clk 0:01:31.1]}
60... Rf5+ {[%clk 0:00:15.3]} 61. Kg4 {[%clk 0:01:28.4]} 61... Rg5+ {[%clk
0:00:16.1]} 62. Kf4 {[%clk 0:01:29.8]} 62... Rg6 {[%clk 0:00:16.9]} 63. Rcc6
{[%clk 0:01:26.2]} 63... Bg5+ {[%clk 0:00:12.9]} 64. Kg4 {[%clk 0:01:27.2]}
64... Rxc6 {[%clk 0:00:14.8]} 65. Rxc6+ {[%clk 0:01:27.4]} 1-0